[Event "Elite Hotels Open 2024"]
[Site "Elite Stadshotellet, Kungsgatan 6, Vaxjo, Sweden"]
[Date "2024.02.09"]
[Round "4.12"]
[White "Karlsson, Jorgen"]
[Black "Banerjee, Aryan"]
[Result "1/2-1/2"]
[TimeControl "15 minutes + 5 seconds per move from move one (Round 1 - 4) / 90 minutes + 30 seconds per move from move one (Round 5 - 8)"]
[WhiteFideId "1711679"]
[BlackFideId "1765035"]
[WhiteElo "2056"]
[BlackElo "1752"]

1. e4 {[%clk 00:15:07]} {[%emt 00:00:02]} e5 {[%clk 00:15:08]} {[%emt
00:00:02]} 2. Bc4 {[%clk 00:15:10]} {[%emt 00:00:02]} Nc6 {[%clk 00:15:08]}
{[%emt 00:00:05]} 3. a3 {[%clk 00:15:13]} {[%emt 00:00:02]} Bc5 {[%clk
00:15:07]} {[%emt 00:00:06]} 4. d3 {[%clk 00:15:01]} {[%emt 00:00:17]} Nf6
{[%clk 00:15:11]} {[%emt 00:00:02]} 5. b4 {[%clk 00:14:59]} {[%emt 00:00:07]}
Bb6 {[%clk 00:15:08]} {[%emt 00:00:08]} 6. Nf3 {[%clk 00:14:32]} {[%emt
00:00:31]} d6 {[%clk 00:15:13]} 7. Be3 {[%clk 00:14:29]} {[%emt 00:00:09]} Bg4
{[%clk 00:14:06]} {[%emt 00:01:12]} 8. h3 {[%clk 00:14:19]} {[%emt 00:00:15]}
Bh5 {[%clk 00:14:05]} {[%emt 00:00:06]} 9. c3 {[%clk 00:13:25]} {[%emt
00:01:00]} d5 {[%clk 00:13:47]} {[%emt 00:00:23]} 10. exd5 {[%clk 00:13:21]}
{[%emt 00:00:09]} Nxd5 {[%clk 00:13:51]} {[%emt 00:00:01]} 11. Bxd5 {[%clk
00:12:57]} {[%emt 00:00:28]} Qxd5 {[%clk 00:13:53]} {[%emt 00:00:02]} 12. c4
{[%clk 00:13:01]} {[%emt 00:00:02]} Bxf3 {[%clk 00:13:36]} {[%emt 00:00:22]} 13.
gxf3 {[%clk 00:13:05]} {[%emt 00:00:02]} Qe6 {[%clk 00:12:35]} {[%emt
00:01:06]} 14. c5 {[%clk 00:13:08]} {[%emt 00:00:01]} a5 {[%clk 00:12:39]}
{[%emt 00:00:01]} 15. cxb6 {[%clk 00:13:06]} {[%emt 00:00:07]} axb4 {[%clk
00:12:43]} 16. a4 {[%clk 00:12:42]} {[%emt 00:00:29]} O-O {[%clk 00:12:03]}
{[%emt 00:00:45]} 17. Nd2 {[%clk 00:12:34]} {[%emt 00:00:12]} Nd4 {[%clk
00:12:01]} {[%emt 00:00:07]} 18. bxc7 {[%clk 00:09:59]} {[%emt 00:02:40]} b3
{[%clk 00:12:04]} {[%emt 00:00:02]} 19. Bxd4 {[%clk 00:09:47]} {[%emt
00:00:18]} exd4+ {[%clk 00:12:08]} 20. Kf1 {[%clk 00:09:50]} {[%emt 00:00:02]}
Rfe8 {[%clk 00:10:13]} {[%emt 00:02:00]} 21. Nxb3 {[%clk 00:09:47]} {[%emt
00:00:08]} Qd7 {[%clk 00:09:25]} {[%emt 00:00:50]} 22. Qc2 {[%clk 00:09:11]}
{[%emt 00:00:42]} Rac8 {[%clk 00:09:16]} {[%emt 00:00:15]} 23. Rc1 {[%clk
00:08:44]} {[%emt 00:00:33]} Qxa4 {[%clk 00:09:06]} {[%emt 00:00:15]} 24. Qc4
{[%clk 00:08:40]} {[%emt 00:00:08]} Qa2 {[%clk 00:09:03]} {[%emt 00:00:07]} 25.
Nxd4 {[%clk 00:08:36]} {[%emt 00:00:11]} Qd2 {[%clk 00:08:48]} {[%emt
00:00:20]} 26. Nf5 {[%clk 00:07:56]} {[%emt 00:00:45]} Re2 {[%clk 00:07:16]}
{[%emt 00:01:37]} 27. Rh2 {[%emt 00:00:03]} b5 {[%emt 00:00:01]} 28. Qd4 {[%clk
00:05:45]} {[%emt 00:02:17]} Qxc1+ {[%clk 00:06:54]} {[%emt 00:00:33]} 29. Kxe2
{[%clk 00:05:48]} {[%emt 00:00:02]} Re8+ {[%clk 00:06:28]} {[%emt 00:00:30]} 30.
Ne3 {[%clk 00:05:39]} {[%emt 00:00:14]} Qxc7 {[%clk 00:06:24]} {[%emt
00:00:10]} 31. Rg2 {[%clk 00:05:41]} {[%emt 00:00:03]} Qc2+ {[%clk 00:06:10]}
{[%emt 00:00:18]} 32. Ke1 {[%clk 00:05:11]} {[%emt 00:00:34]} Qc1+ {[%clk
00:06:10]} {[%emt 00:00:05]} 33. Ke2 {[%clk 00:05:12]} {[%emt 00:00:05]} Qc2+
{[%clk 00:06:14]} {[%emt 00:00:01]} 1/2-1/2

[Event "Elite Hotels Open 2024"]
[Site "Elite Stadshotellet, Kungsgatan 6, Vaxjo, Sweden"]
[Date "2024.02.09"]
[Round "4.13"]
[White "Jacobsen, Mikkel Manosri"]
[Black "Seiger, Vidar"]
[Result "1-0"]
[TimeControl "15 minutes + 5 seconds per move from move one (Round 1 - 4) / 90 minutes + 30 seconds per move from move one (Round 5 - 8)"]
[WhiteTitle "FM"]
[WhiteFideId "1444514"]
[BlackFideId "1756079"]
[WhiteElo "2374"]
[BlackElo "1978"]

1. d4 {[%clk 00:15:07]} {[%emt 00:00:02]} Nf6 {[%clk 00:15:05]} {[%emt
00:00:05]} 2. Nf3 {[%clk 00:15:09]} {[%emt 00:00:02]} g6 {[%clk 00:15:08]}
{[%emt 00:00:03]} 3. Bf4 {[%clk 00:15:09]} {[%emt 00:00:05]} Bg7 {[%clk
00:15:09]} {[%emt 00:00:04]} 4. c3 {[%clk 00:15:12]} {[%emt 00:00:02]} O-O
{[%clk 00:15:09]} {[%emt 00:00:05]} 5. Nbd2 {[%clk 00:15:15]} {[%emt 00:00:02]}
d5 {[%clk 00:14:48]} {[%emt 00:00:26]} 6. e3 {[%clk 00:15:14]} {[%emt
00:00:06]} c5 {[%clk 00:14:20]} {[%emt 00:00:33]} 7. dxc5 {[%clk 00:15:07]}
{[%emt 00:00:12]} Nc6 {[%clk 00:13:45]} {[%emt 00:00:41]} 8. h3 {[%clk
00:15:06]} {[%emt 00:00:06]} Nd7 {[%clk 00:12:52]} {[%emt 00:00:58]} 9. Nb3
{[%clk 00:15:03]} {[%emt 00:00:07]} e5 {[%clk 00:12:40]} {[%emt 00:00:17]} 10.
Bg5 {[%clk 00:15:06]} {[%emt 00:00:02]} Nf6 {[%clk 00:12:44]} {[%emt 00:00:02]}
11. Bb5 {[%clk 00:13:44]} {[%emt 00:01:26]} Re8 {[%clk 00:12:13]} {[%emt
00:00:36]} 12. O-O {[%clk 00:13:34]} {[%emt 00:00:14]} h6 {[%clk 00:11:39]}
{[%emt 00:00:40]} 13. Bh4 {[%clk 00:13:36]} {[%emt 00:00:03]} g5 {[%clk
00:11:42]} {[%emt 00:00:03]} 14. Bg3 {[%clk 00:13:36]} {[%emt 00:00:05]} Ne4
{[%clk 00:11:44]} {[%emt 00:00:03]} 15. Bh2 {[%clk 00:13:14]} {[%emt 00:00:26]}
g4 {[%clk 00:11:20]} {[%emt 00:00:30]} 16. Nfd2 {[%clk 00:10:56]} {[%emt
00:02:22]} gxh3 {[%clk 00:10:45]} {[%emt 00:00:40]} 17. Nxe4 {[%clk 00:10:59]}
{[%emt 00:00:03]} hxg2 {[%clk 00:10:17]} {[%emt 00:00:33]} 18. Kxg2 {[%clk
00:10:29]} {[%emt 00:00:34]} dxe4 {[%clk 00:10:20]} {[%emt 00:00:02]} 19. Qxd8
{[%clk 00:10:18]} {[%emt 00:00:17]} Rxd8 {[%clk 00:10:23]} {[%emt 00:00:02]} 20.
Bxc6 {[%clk 00:09:28]} {[%emt 00:00:55]} bxc6 {[%clk 00:10:26]} {[%emt
00:00:02]} 21. Na5 {[%clk 00:09:31]} {[%emt 00:00:02]} Bd7 {[%clk 00:07:18]}
{[%emt 00:03:13]} 22. Rfd1 {[%clk 00:09:14]} {[%emt 00:00:22]} Be8 {[%clk
00:07:22]} {[%emt 00:00:01]} 23. b4 {[%clk 00:09:11]} {[%emt 00:00:09]} Rd3
{[%clk 00:06:59]} {[%emt 00:00:27]} 24. Rxd3 {[%clk 00:04:25]} {[%emt
00:04:50]} exd3 {[%clk 00:07:03]} {[%emt 00:00:02]} 25. e4 {[%clk 00:04:28]}
{[%emt 00:00:01]} f5 {[%clk 00:06:00]} {[%emt 00:01:08]} 26. f3 {[%clk
00:04:31]} {[%emt 00:00:03]} Rc8 {[%clk 00:03:29]} {[%emt 00:02:36]} 27. Nc4
{[%clk 00:03:36]} {[%emt 00:01:00]} Bg6 {[%clk 00:02:57]} {[%emt 00:00:36]} 28.
Nd6 {[%clk 00:03:15]} {[%emt 00:00:26]} Rf8 {[%clk 00:02:53]} {[%emt 00:00:09]}
29. Rd1 {[%clk 00:03:00]} {[%emt 00:00:20]} fxe4 {[%clk 00:02:56]} {[%emt
00:00:03]} 30. fxe4 {[%clk 00:02:16]} {[%emt 00:00:49]} Rd8 {[%clk 00:01:43]}
{[%emt 00:01:18]} 31. Kf2 {[%clk 00:02:10]} {[%emt 00:00:10]} Bf8 {[%clk
00:01:45]} {[%emt 00:00:03]} 32. Bxe5 {[%clk 00:01:24]} {[%emt 00:00:51]} Bxd6
{[%clk 00:01:47]} {[%emt 00:00:03]} 33. cxd6 {[%clk 00:01:27]} {[%emt
00:00:03]} Bxe4 {[%clk 00:01:50]} {[%emt 00:00:02]} 34. Ke3 {[%clk 00:01:25]}
{[%emt 00:00:07]} Bg6 {[%clk 00:01:43]} {[%emt 00:00:12]} 35. Kd4 {[%clk
00:00:59]} {[%emt 00:00:31]} h5 {[%clk 00:01:09]} {[%emt 00:00:39]} 36. c4
{[%clk 00:00:47]} {[%emt 00:00:16]} Re8 {[%clk 00:00:33]} {[%emt 00:00:42]} 37.
c5 {[%clk 00:00:41]} {[%emt 00:00:10]} a6 {[%clk 00:00:30]} {[%emt 00:00:09]}
38. Rg1 {[%clk 00:00:32]} {[%emt 00:00:14]} Kh7 {[%clk 00:00:23]} {[%emt
00:00:12]} 39. Bf6 {[%clk 00:00:33]} {[%emt 00:00:04]} d2 {[%clk 00:00:06]}
{[%emt 00:00:22]} 40. Rd1 {[%clk 00:00:26]} {[%emt 00:00:12]} Re4+ {[%clk
00:00:09]} {[%emt 00:00:02]} 41. Kc3 {[%clk 00:00:29]} {[%emt 00:00:02]} Bf5
{[%clk 00:00:08]} {[%emt 00:00:06]} 42. Rxd2 {[%clk 00:00:29]} {[%emt
00:00:05]} Re3+ {[%clk 00:00:09]} {[%emt 00:00:04]} 43. Kb2 {[%clk 00:00:27]}
{[%emt 00:00:07]} Bd7 {[%clk 00:00:12]} {[%emt 00:00:02]} 44. Rg2 {[%clk
00:00:26]} {[%emt 00:00:05]} 1-0

[Event "Elite Hotels Open 2024"]
[Site "Elite Stadshotellet, Kungsgatan 6, Vaxjo, Sweden"]
[Date "2024.02.09"]
[Round "4.14"]
[White "Eriksson, Wilmer"]
[Black "Olsson, William"]
[Result "1/2-1/2"]
[TimeControl "15 minutes + 5 seconds per move from move one (Round 1 - 4) / 90 minutes + 30 seconds per move from move one (Round 5 - 8)"]
[BlackTitle "FM"]
[WhiteFideId "1768298"]
[BlackFideId "1741721"]
[WhiteElo "1976"]
[BlackElo "2373"]

1. e4 {[%clk 00:15:08]} {[%emt 00:00:02]} c5 {[%clk 00:15:05]} {[%emt
00:00:05]} 2. c3 {[%clk 00:15:11]} {[%emt 00:00:02]} Nf6 {[%clk 00:15:09]}
{[%emt 00:00:02]} 3. e5 {[%clk 00:15:15]} {[%emt 00:00:01]} Nd5 {[%clk
00:15:12]} {[%emt 00:00:01]} 4. Nf3 {[%clk 00:15:19]} d6 {[%clk 00:15:16]}
{[%emt 00:00:01]} 5. Bb5+ {[%clk 00:15:22]} {[%emt 00:00:02]} Bd7 {[%clk
00:14:42]} {[%emt 00:00:39]} 6. Bc4 {[%clk 00:15:25]} {[%emt 00:00:02]} e6
{[%clk 00:14:38]} {[%emt 00:00:09]} 7. d4 {[%clk 00:14:50]} {[%emt 00:00:40]}
cxd4 {[%clk 00:14:40]} {[%emt 00:00:03]} 8. cxd4 {[%clk 00:14:53]} {[%emt
00:00:02]} Bc6 {[%clk 00:14:38]} {[%emt 00:00:07]} 9. O-O {[%clk 00:14:35]}
{[%emt 00:00:23]} Nd7 {[%clk 00:14:39]} {[%emt 00:00:04]} 10. Qe2 {[%clk
00:13:31]} {[%emt 00:01:09]} Be7 {[%clk 00:14:33]} {[%emt 00:00:10]} 11. exd6
{[%clk 00:10:55]} {[%emt 00:02:41]} Bxd6 {[%clk 00:14:35]} {[%emt 00:00:03]} 12.
Nc3 {[%clk 00:10:47]} {[%emt 00:00:13]} N7b6 {[%clk 00:13:08]} {[%emt
00:01:33]} 13. Bd3 {[%clk 00:10:04]} {[%emt 00:00:49]} O-O {[%clk 00:12:51]}
{[%emt 00:00:21]} 14. Ne4 {[%clk 00:08:17]} {[%emt 00:01:52]} Nf4 {[%clk
00:12:34]} {[%emt 00:00:22]} 15. Bxf4 {[%clk 00:08:14]} {[%emt 00:00:07]} Bxf4
{[%clk 00:12:37]} {[%emt 00:00:02]} 16. Rfd1 {[%clk 00:07:46]} {[%emt
00:00:34]} Rc8 {[%clk 00:12:30]} {[%emt 00:00:11]} 17. Ne5 {[%clk 00:06:06]}
{[%emt 00:01:45]} Bd5 {[%clk 00:12:18]} {[%emt 00:00:17]} 18. Qh5 {[%clk
00:05:33]} {[%emt 00:00:38]} f5 {[%clk 00:11:25]} {[%emt 00:00:58]} 19. Nc3
{[%clk 00:05:18]} {[%emt 00:00:20]} Rf6 {[%clk 00:10:34]} {[%emt 00:00:56]} 20.
g3 {[%clk 00:04:42]} {[%emt 00:00:42]} Rh6 {[%clk 00:08:03]} {[%emt 00:02:35]}
21. Qe2 {[%clk 00:04:45]} {[%emt 00:00:02]} Bxe5 {[%clk 00:07:10]} {[%emt
00:00:58]} 22. dxe5 {[%clk 00:04:34]} {[%emt 00:00:16]} f4 {[%clk 00:07:00]}
{[%emt 00:00:15]} 23. Ne4 {[%clk 00:03:28]} {[%emt 00:01:11]} Nd7 {[%clk
00:06:06]} {[%emt 00:00:59]} 24. Nd6 {[%clk 00:02:56]} {[%emt 00:00:37]} fxg3
{[%clk 00:06:00]} {[%emt 00:00:11]} 25. fxg3 {[%clk 00:02:59]} {[%emt
00:00:02]} Qb6+ {[%clk 00:06:03]} {[%emt 00:00:01]} 26. Qf2 {[%clk 00:02:43]}
{[%emt 00:00:22]} Qxf2+ {[%clk 00:06:06]} {[%emt 00:00:02]} 27. Kxf2 {[%clk
00:02:47]} {[%emt 00:00:01]} Rxh2+ {[%clk 00:06:09]} {[%emt 00:00:01]} 28. Ke3
{[%clk 00:02:37]} {[%emt 00:00:14]} Rf8 {[%clk 00:06:10]} {[%emt 00:00:04]} 29.
Rf1 {[%clk 00:01:56]} {[%emt 00:00:46]} Nxe5 {[%clk 00:05:58]} {[%emt
00:00:16]} 30. Rxf8+ {[%clk 00:01:45]} {[%emt 00:00:17]} Kxf8 {[%clk 00:06:02]}
{[%emt 00:00:02]} 31. Be4 {[%clk 00:01:30]} {[%emt 00:00:20]} Rxb2 {[%clk
00:05:29]} {[%emt 00:00:38]} 32. Bxd5 {[%clk 00:01:24]} {[%emt 00:00:11]} exd5
{[%clk 00:05:33]} {[%emt 00:00:02]} 33. Kd4 {[%clk 00:01:23]} {[%emt 00:00:06]}
Nc6+ {[%clk 00:05:35]} {[%emt 00:00:02]} 34. Kxd5 {[%clk 00:01:26]} {[%emt
00:00:02]} Rd2+ {[%clk 00:05:33]} {[%emt 00:00:07]} 35. Ke6 {[%clk 00:01:19]}
{[%emt 00:00:12]} Nd8+ {[%clk 00:05:14]} {[%emt 00:00:24]} 36. Ke5 {[%clk
00:01:08]} {[%emt 00:00:17]} Nf7+ {[%clk 00:05:14]} {[%emt 00:00:04]} 37. Nxf7
{[%clk 00:01:10]} {[%emt 00:00:04]} Kxf7 {[%clk 00:05:16]} {[%emt 00:00:02]} 38.
Rc1 {[%clk 00:00:57]} {[%emt 00:00:15]} Rxa2 {[%clk 00:04:52]} {[%emt
00:00:32]} 39. Rc7+ {[%clk 00:01:01]} Kg6 {[%clk 00:04:55]} {[%emt 00:00:01]}
40. Rxb7 {[%clk 00:01:04]} {[%emt 00:00:02]} Ra5+ {[%clk 00:04:52]} {[%emt
00:00:08]} 41. Kf4 {[%clk 00:01:08]} {[%emt 00:00:02]} Ra4+ {[%clk 00:04:44]}
{[%emt 00:00:13]} 42. Kf3 {[%clk 00:01:08]} {[%emt 00:00:04]} h5 {[%clk
00:04:42]} {[%emt 00:00:07]} 43. Rc7 {[%clk 00:01:09]} {[%emt 00:00:05]} Ra5
{[%clk 00:04:28]} {[%emt 00:00:19]} 44. Rd7 {[%clk 00:01:00]} {[%emt 00:00:15]}
Kf6 {[%clk 00:04:29]} {[%emt 00:00:03]} 45. Rd6+ {[%clk 00:01:02]} {[%emt
00:00:03]} Kg5 {[%clk 00:04:33]} {[%emt 00:00:02]} 46. Rd7 {[%clk 00:00:57]}
{[%emt 00:00:10]} g6 {[%clk 00:04:37]} {[%emt 00:00:01]} 47. Rc7 {[%clk
00:01:01]} {[%emt 00:00:01]} Rf5+ {[%clk 00:04:19]} {[%emt 00:00:22]} 48. Kg2
{[%clk 00:01:04]} {[%emt 00:00:02]} a5 {[%clk 00:04:22]} {[%emt 00:00:03]} 49.
Kh3 {[%clk 00:01:03]} {[%emt 00:00:05]} Rd5 {[%clk 00:04:19]} {[%emt 00:00:07]}
50. Rc4 {[%clk 00:00:58]} {[%emt 00:00:10]} Kf5 {[%clk 00:04:13]} {[%emt
00:00:12]} 51. Rf4+ {[%clk 00:01:01]} {[%emt 00:00:02]} Ke6 {[%clk 00:03:29]}
{[%emt 00:00:49]} 52. Re4+ {[%clk 00:00:55]} {[%emt 00:00:11]} Re5 {[%clk
00:03:32]} {[%emt 00:00:02]} 53. Rd4 {[%clk 00:00:55]} {[%emt 00:00:04]} g5
{[%clk 00:03:27]} {[%emt 00:00:10]} 54. Rd8 {[%clk 00:00:55]} {[%emt 00:00:04]}
Kf5 {[%clk 00:03:20]} {[%emt 00:00:12]} 55. Rf8+ {[%clk 00:00:58]} {[%emt
00:00:03]} Ke4 {[%clk 00:03:24]} 56. Ra8 {[%clk 00:00:46]} {[%emt 00:00:17]}
Kd3 {[%clk 00:02:32]} {[%emt 00:00:58]} 57. Rh8 {[%clk 00:00:42]} {[%emt
00:00:08]} g4 {[%clk 00:02:27]} {[%emt 00:00:10]} 58. Kh4 {[%clk 00:00:46]}
{[%emt 00:00:01]} Kc4 {[%clk 00:02:27]} {[%emt 00:00:05]} 59. Rc8+ {[%clk
00:00:34]} {[%emt 00:00:16]} Kb4 {[%clk 00:02:28]} {[%emt 00:00:05]} 60. Rc4+
{[%clk 00:00:28]} {[%emt 00:00:11]} Kb5 {[%clk 00:02:10]} {[%emt 00:00:23]} 61.
Rc5+ {[%clk 00:00:30]} {[%emt 00:00:03]} Rxc5 {[%clk 00:02:10]} 1/2-1/2

[Event "Elite Hotels Open 2024"]
[Site "Elite Stadshotellet, Kungsgatan 6, Vaxjo, Sweden"]
[Date "2024.02.09"]
[Round "4.15"]
[White "Kistrup, Nicolai"]
[Black "Nilsson, Oliver"]
[Result "1-0"]
[TimeControl "15 minutes + 5 seconds per move from move one (Round 1 - 4) / 90 minutes + 30 seconds per move from move one (Round 5 - 8)"]
[WhiteTitle "FM"]
[WhiteFideId "1444816"]
[BlackFideId "1730177"]
[WhiteElo "2326"]
[BlackElo "1973"]

1. d4 {[%clk 00:15:09]} {[%emt 00:00:01]} Nf6 {[%clk 00:15:09]} {[%emt
00:00:02]} 2. c4 {[%clk 00:15:13]} {[%emt 00:00:01]} g6 {[%clk 00:15:13]}
{[%emt 00:00:01]} 3. Nc3 {[%clk 00:15:17]} Bg7 {[%clk 00:15:17]} 4. e4 {[%clk
00:15:21]} d6 {[%clk 00:15:21]} {[%emt 00:00:01]} 5. h3 {[%clk 00:15:25]} O-O
{[%clk 00:15:24]} {[%emt 00:00:03]} 6. Be3 {[%clk 00:15:27]} {[%emt 00:00:02]}
e5 {[%clk 00:15:24]} {[%emt 00:00:05]} 7. d5 {[%clk 00:15:31]} {[%emt
00:00:01]} Na6 {[%clk 00:13:57]} {[%emt 00:01:33]} 8. g4 {[%clk 00:15:34]}
{[%emt 00:00:01]} Nc5 {[%clk 00:14:00]} {[%emt 00:00:02]} 9. f3 {[%clk
00:15:38]} a5 {[%clk 00:13:55]} {[%emt 00:00:10]} 10. Qd2 {[%clk 00:15:41]}
{[%emt 00:00:02]} a4 {[%clk 00:12:59]} {[%emt 00:01:02]} 11. O-O-O {[%clk
00:15:19]} {[%emt 00:00:26]} Bd7 {[%clk 00:11:06]} {[%emt 00:01:58]} 12. h4
{[%clk 00:15:09]} {[%emt 00:00:15]} h5 {[%clk 00:10:22]} {[%emt 00:00:48]} 13.
g5 {[%clk 00:15:13]} {[%emt 00:00:02]} Ne8 {[%clk 00:09:59]} {[%emt 00:00:29]}
14. Nh3 {[%clk 00:15:10]} {[%emt 00:00:07]} c6 {[%clk 00:09:50]} {[%emt
00:00:14]} 15. dxc6 {[%clk 00:14:55]} {[%emt 00:00:20]} Be6 {[%clk 00:09:34]}
{[%emt 00:00:22]} 16. Bxc5 {[%clk 00:14:54]} {[%emt 00:00:06]} 1-0

[Event "Elite Hotels Open 2024"]
[Site "Elite Stadshotellet, Kungsgatan 6, Vaxjo, Sweden"]
[Date "2024.02.09"]
[Round "4.16"]
[White "Grahn, Vidar"]
[Black "Frisk, Hans"]
[Result "1-0"]
[TimeControl "15 minutes + 5 seconds per move from move one (Round 1 - 4) / 90 minutes + 30 seconds per move from move one (Round 5 - 8)"]
[WhiteFideId "1744780"]
[BlackFideId "1708570"]
[WhiteElo "2234"]
[BlackElo "1973"]

1. d4 {[%clk 00:15:06]} {[%emt 00:00:03]} Nf6 {[%clk 00:15:09]} {[%emt
00:00:01]} 2. c4 {[%clk 00:15:10]} {[%emt 00:00:01]} e6 {[%clk 00:15:13]} 3. g3
{[%clk 00:15:14]} {[%emt 00:00:01]} d5 {[%clk 00:14:54]} {[%emt 00:00:24]} 4.
Bg2 {[%clk 00:15:17]} {[%emt 00:00:03]} dxc4 {[%clk 00:14:30]} {[%emt
00:00:29]} 5. Nf3 {[%clk 00:15:20]} {[%emt 00:00:02]} c5 {[%clk 00:14:33]}
{[%emt 00:00:02]} 6. O-O {[%clk 00:15:22]} {[%emt 00:00:03]} Nc6 {[%clk
00:14:37]} {[%emt 00:00:01]} 7. dxc5 {[%clk 00:15:26]} {[%emt 00:00:02]} Qxd1
{[%clk 00:14:31]} 8. Rxd1 {[%clk 00:15:30]} Bxc5 {[%clk 00:14:23]} {[%emt
00:00:13]} 9. Nbd2 {[%clk 00:15:33]} {[%emt 00:00:01]} c3 {[%clk 00:14:06]}
{[%emt 00:00:22]} 10. bxc3 {[%clk 00:15:37]} {[%emt 00:00:02]} O-O {[%clk
00:13:26]} {[%emt 00:00:44]} 11. Nb3 {[%clk 00:15:41]} {[%emt 00:00:01]} Be7
{[%clk 00:12:51]} {[%emt 00:00:40]} 12. Nfd4 {[%clk 00:15:43]} {[%emt
00:00:03]} Bd7 {[%clk 00:12:21]} {[%emt 00:00:34]} 13. a4 {[%clk 00:15:43]}
{[%emt 00:00:06]} Rac8 {[%clk 00:11:41]} {[%emt 00:00:45]} 14. Nb5 {[%clk
00:15:25]} {[%emt 00:00:22]} Rfd8 {[%clk 00:10:03]} {[%emt 00:01:43]} 15. Be3
{[%clk 00:14:10]} {[%emt 00:01:20]} Nd5 {[%clk 00:08:00]} {[%emt 00:02:08]} 16.
Bxd5 {[%clk 00:13:43]} {[%emt 00:00:32]} exd5 {[%clk 00:08:04]} {[%emt
00:00:01]} 17. Rxd5 {[%clk 00:13:24]} {[%emt 00:00:24]} Be6 {[%clk 00:07:49]}
{[%emt 00:00:20]} 18. Rxd8+ {[%clk 00:13:26]} {[%emt 00:00:03]} Rxd8 {[%clk
00:07:47]} {[%emt 00:00:08]} 19. Nc5 {[%clk 00:12:34]} {[%emt 00:00:57]} Bc8
{[%clk 00:06:53]} {[%emt 00:00:59]} 20. Nd3 {[%clk 00:09:42]} {[%emt 00:02:57]}
Bf6 {[%clk 00:06:03]} {[%emt 00:00:55]} 21. Nxa7 {[%clk 00:09:27]} {[%emt
00:00:20]} Nxa7 {[%clk 00:05:31]} {[%emt 00:00:37]} 22. Bxa7 {[%clk 00:09:31]}
{[%emt 00:00:02]} Bxc3 {[%clk 00:05:27]} {[%emt 00:00:08]} 23. Rc1 {[%clk
00:09:29]} {[%emt 00:00:05]} Bf6 {[%clk 00:05:07]} {[%emt 00:00:27]} 24. Rc7
{[%clk 00:09:05]} {[%emt 00:00:29]} g6 {[%clk 00:04:59]} {[%emt 00:00:14]} 25.
a5 {[%clk 00:08:07]} {[%emt 00:01:03]} Bf5 {[%clk 00:04:12]} {[%emt 00:00:51]}
26. Rxb7 {[%clk 00:07:53]} {[%emt 00:00:19]} Bxd3 {[%clk 00:04:14]} {[%emt
00:00:03]} 27. exd3 {[%clk 00:07:52]} {[%emt 00:00:06]} Rxd3 {[%clk 00:04:17]}
{[%emt 00:00:02]} 28. Bc5 {[%clk 00:07:32]} {[%emt 00:00:24]} Rd1+ {[%clk
00:04:08]} {[%emt 00:00:15]} 29. Kg2 {[%clk 00:07:35]} {[%emt 00:00:03]} Ra1
{[%clk 00:04:08]} {[%emt 00:00:04]} 30. Rb8+ {[%clk 00:07:35]} {[%emt
00:00:04]} 1-0